fUST/lending_fUST_20251007
["ID","MTS","AMOUNT","RATE_DAILY","PERIOD"]
[389777594,1759843839302,-151.0,0.00019058,2]
[389777595,1759843839311,-151.0,0.00019058,2]
[389777596,1759843839321,-151.0,0.00019058,2]
[389777597,1759843839331,-209.16230181,0.00019058,2]
[389777598,1759843839340,-151.0,0.00019058,2]
[389777599,1759843839350,-151.0,0.00019058,2]
[389777600,1759843839361,-151.0,0.00019058,2]
[389777601,1759843839371,-151.0,0.00019058,2]
[389777602,1759843839381,-151.0,0.00019058,2]
[389777603,1759843839390,-151.0,0.00019058,2]
[389777604,1759843839400,-151.0,0.00019058,2]
[389777605,1759843839409,-151.0,0.00019058,2]
[389777606,1759843839419,-151.0,0.00019058,2]
[389777607,1759843839428,-151.0,0.00019058,2]
[389777608,1759843839438,-151.0,0.00019058,2]
[389777609,1759843839447,-151.0,0.00019058,2]
[389777610,1759843839456,-151.0,0.00019058,2]
[389777611,1759843839465,-151.0,0.00019058,2]
[389777612,1759843839474,-151.0,0.00019058,2]
[389777613,1759843839483,-151.0,0.00019058,2]
[389777614,1759843839492,-151.0,0.00019058,2]
[389777615,1759843839502,-154.32934728,0.00019058,2]
[389777616,1759843839511,-151.0,0.00019058,2]
[389777617,1759843839520,-151.0,0.00019058,2]
[389777618,1759843839529,-151.0,0.00019058,2]
[389777619,1759843839539,-151.0,0.00019058,2]
[389777620,1759843839549,-151.0,0.00019058,2]
[389777621,1759843839558,-151.0,0.00019058,2]
[389777623,1759843839567,-151.0,0.00019058,2]
[389777625,1759843839577,-151.0,0.00019058,2]
[389777627,1759843839586,-151.0,0.00019058,2]
[389777628,1759843839596,-151.0,0.00019058,2]
[389777630,1759843839606,-151.0,0.00019058,2]
[389777631,1759843839616,-214.26026121,0.00019058,2]
[389777632,1759843839625,-7654.60951866,0.00019063,7]
[389777633,1759843839634,-315.54291964,0.00019068,2]
[389777634,1759843839644,-500.0,0.00019068,2]
[389777635,1759843839653,-222.31489232,0.00019068,2]
[389777636,1759843839663,-1000.0,0.00019069,2]
[389777637,1759843839672,-1000.0,0.00019069,2]
[389777638,1759843839681,-1000.0,0.00019069,2]
[389777639,1759843839692,-1000.0,0.00019069,2]
[389777641,1759843839702,-1000.0,0.00019069,2]
[389777642,1759843839711,-1000.0,0.00019069,2]
[389777643,1759843839720,-1000.0,0.00019069,2]
[389777644,1759843839730,-1000.0,0.00019069,2]
[389777645,1759843839739,-1000.0,0.00019069,2]
[389777646,1759843839749,-1000.0,0.00019069,2]
[389777647,1759843839759,-1000.0,0.00019069,2]
[389777648,1759843839769,-1000.0,0.00019069,2]
[389777649,1759843839780,-1000.0,0.00019069,2]
[389777650,1759843839789,-1000.0,0.00019069,2]
[389777651,1759843839798,-1000.0,0.00019069,2]
[389777652,1759843839807,-952.81151107,0.00019069,2]
[389777653,1759843839817,-164.66387778,0.00019069,2]
[389777654,1759843839827,-1108.87768273,0.00019157,2]
[389777656,1759843839836,-168.0,0.00019159,2]
[389777658,1759843839845,-4336.78992387,0.00019169,2]
[389777660,1759843839854,-983.78222454,0.00019178,2]
[389777662,1759843839864,-500.0,0.000192,2]
[389777664,1759843839873,-657.0,0.00019216,2]
[389777666,1759843839883,-657.0,0.00019226,2]
[389777668,1759843839892,-630.0,0.00019279,2]
[389777669,1759843839901,-1739.065,0.00019279,2]
[389777670,1759843839911,-411.0,0.00019279,2]
[389777671,1759843839920,-657.0,0.00019297,2]
[389777672,1759843839929,-725.44828026,0.00019329,2]
[389777673,1759843839939,-657.0,0.0001933,2]
[389777674,1759843839948,-168.0,0.00019334,2]
[389777675,1759843839957,-1108.87768273,0.00019338,2]
[389777676,1759843839965,-168.0,0.00019378,2]
[389777677,1759843839975,-500.0,0.000194,2]
[389777678,1759843839984,-168.0,0.00019408,2]
[389777680,1759843839993,-993.0,0.00019439,2]
[389777682,1759843840003,-799.89012542,0.00019453,2]
[389777684,1759843840012,-168.01695144,0.00019482,2]
[389777686,1759843840021,-657.0,0.00019484,2]
[389777687,1759843840030,-168.0,0.00019485,2]
[389777688,1759843840040,-168.0,0.0001957,2]
[389777689,1759843840050,-330.70023109,0.00019572,2]
[389777690,1759843840060,-330.70023105,0.00019577,2]
[389777691,1759843840069,-330.70023105,0.00019582,2]
[389777692,1759843840078,-330.70023105,0.00019587,2]
[389777693,1759843840088,-330.70023105,0.00019592,2]
[389777694,1759843840097,-5764.77899208,0.00019594,2]
[389777695,1759843840107,-345.0,0.00019614,2]
[389777696,1759843840117,-381.0,0.00019639,2]
[389777697,1759843840127,-420.0,0.00019639,2]
[389777698,1759843840137,-339.0,0.00019639,2]
[389777699,1759843840146,-420.0,0.00019639,2]
[389777700,1759843840156,-420.0,0.00019639,2]
[389777701,1759843840165,-500.0,0.00019673,2]
[389777702,1759843840175,-500.0,0.00019673,2]
[389777703,1759843840184,-159.63927334,0.00019673,2]
[389777704,1759843840193,-500.0,0.00019673,2]
[389777705,1759843840203,-500.57425859,0.00019673,2]
[389777706,1759843840216,-500.0,0.00019673,2]
[389777707,1759843840225,-500.4367729,0.00019673,2]
[389777708,1759843840235,-500.0,0.00019673,2]
[389777709,1759843840243,-500.0,0.00019673,2]
[389777710,1759843840252,-498.24912826,0.00019673,2]
[389777711,1759843840262,-342.34883664,0.00019673,2]
[389777712,1759843840271,-500.0,0.00019673,2]
[389777713,1759843840280,-234.20938206,0.00019675,2]
[389777714,1759843840290,-2200.737,0.00019676,2]
[389777715,1759843840299,-450.72,0.00019682,3]
[389777716,1759843840308,-225.36,0.00019682,3]
[389777717,1759843840317,-676.08,0.00019682,3]
[389777718,1759843840326,-151.0,0.00019691,2]
[389777719,1759843840335,-198.0,0.00019691,2]
[389777720,1759843840344,-370000.0,0.00019692,2]
[389777721,1759843840354,-1108.87768276,0.00019694,2]
[389777722,1759843840363,-2000.0,0.000197,2]
[389777723,1759843840372,-151.0,0.000197,2]
[389777724,1759843840382,-151.0,0.000197,2]
[389777725,1759843840391,-151.0,0.000197,2]
[389777726,1759843840400,-993.0,0.00019713,2]
[389777727,1759843840409,-168.0,0.00019718,2]
[389777728,1759843840418,-1680.0,0.00019733,2]
[389777729,1759843840427,-5764.77899207,0.00019747,2]
[389777730,1759843840436,-237.79238433,0.00019776,2]
[389777731,1759843840445,-2940.1324729,0.0001979,2]
[389777732,1759843840455,-151.0,0.000198,2]
[389777733,1759843840463,-151.0,0.000198,2]
[389777734,1759843840473,-151.0,0.000198,2]
[389777735,1759843840482,-151.0,0.000198,2]
[389777736,1759843840491,-151.0,0.000198,2]
[389777737,1759843840500,-151.0,0.000198,2]
[389777738,1759843840509,-151.0,0.000198,2]
[389777739,1759843840517,-301.60032361,0.00019809,2]
[389777740,1759843840526,-378.52332229,0.0001981,2]
[389777741,1759843840536,-168.0,0.00019811,2]
[389777742,1759843840545,-168.0,0.00019811,2]
[389777743,1759843840555,-168.0,0.00019817,2]
[389777744,1759843840564,-160.0,0.0001984,2]
[389777745,1759843840573,-402.02512307,0.0001984,2]
[389777746,1759843840582,-533.72506543,0.0001984,2]
[389777747,1759843840592,-2000.0,0.000199,2]
[389777748,1759843840601,-2000.0,0.000199,2]
[389777749,1759843840612,-151.0,0.000199,2]
[389777750,1759843840621,-151.0,0.000199,2]
[389777751,1759843840631,-151.0,0.000199,2]
[389777752,1759843840640,-151.0,0.000199,2]
[389777753,1759843840649,-151.0,0.000199,2]
[389777754,1759843840659,-177.14614789,0.000199,2]
[389777755,1759843840668,-151.0,0.000199,2]
[389777756,1759843840677,-151.0,0.000199,2]
[389777757,1759843840687,-5764.77899207,0.000199,2]
[389777758,1759843840696,-151.0,0.00019913,2]
[389777759,1759843840705,-151.0,0.00019965,2]
[389777760,1759843840714,-258.0272099,0.00019973,2]
[389777761,1759843840724,-500.0,0.00019973,2]
[389777762,1759843840734,-500.0,0.00019973,2]
[389777763,1759843840744,-500.0,0.00019973,2]
[389777764,1759843840753,-500.0,0.00019973,2]
[389777765,1759843840763,-500.0,0.00019973,2]
[389777766,1759843840773,-500.0,0.00019973,2]
[389777767,1759843840782,-500.0,0.00019973,2]
[389777768,1759843840792,-500.0,0.00019973,2]
[389777769,1759843840801,-500.0,0.00019973,2]
[389777770,1759843840810,-500.0,0.00019973,2]
[389777771,1759843840820,-500.0,0.00019973,2]
[389777772,1759843840830,-500.0,0.00019973,2]
[389777773,1759843840839,-500.0,0.00019973,2]
[389777774,1759843840849,-500.0,0.00019973,2]
[389777775,1759843840859,-500.0,0.00019973,2]
[389777776,1759843840868,-500.0,0.00019973,2]
[389777777,1759843840878,-150.56950836,0.00019973,2]
[389777778,1759843840894,-500.0,0.00019973,2]
[389777779,1759843840903,-500.0,0.00019973,2]
[389777780,1759843840913,-500.0,0.00019973,2]
[389777781,1759843840922,-200.19353786,0.00019973,2]
[389777782,1759843840940,-341.61620481,0.00019973,2]
[389777783,1759843840949,-500.0,0.00019973,2]
[389777784,1759843840959,-500.0,0.00019973,2]
[389777785,1759843840968,-200.61392995,0.00019973,2]
[389777786,1759843840976,-500.0,0.00019973,2]
[389777787,1759843840986,-500.0,0.00019973,2]
[389777788,1759843840995,-255.66736951,0.00019973,2]
[389777789,1759843841004,-500.0,0.00019973,2]
[389777790,1759843841014,-500.0,0.00019973,2]
[389777791,1759843841023,-530.76335332,0.00019973,2]
[389777792,1759843841032,-500.0,0.00019973,2]
[389777793,1759843841041,-500.0,0.00019973,2]
[389777794,1759843841050,-500.0,0.00019973,2]
[389777795,1759843841059,-500.0,0.00019973,2]
[389777796,1759843841069,-500.0,0.00019973,2]
[389777797,1759843841078,-500.0,0.00019973,2]
[389777798,1759843841086,-500.0,0.00019973,2]
[389777799,1759843841095,-500.0,0.00019973,2]
[389777800,1759843841105,-500.0,0.00019973,2]
[389777801,1759843841115,-500.0,0.00019973,2]
[389777802,1759843841124,-500.0,0.00019973,2]
[389777803,1759843841134,-500.0,0.00019973,2]
[389777804,1759843841143,-627.73257475,0.00019973,2]
[389777805,1759843841153,-500.0,0.00019973,2]
[389777806,1759843841162,-500.0,0.00019973,2]
[389777807,1759843841174,-510.46914813,0.00019973,2]
[389777808,1759843841186,-500.0,0.00019973,2]
[389777809,1759843841196,-400.0,0.0001998,2]
[389777810,1759843841206,-150000.0,0.00019987,2]
[389777811,1759843841219,-38224.5094017,0.00019987,2]
[389777812,1759843841229,-993.0,0.00019987,2]
[389777813,1759843841239,-151.0,0.00019987,7]
[389777814,1759843841248,-151.0,0.00019987,7]
[389777815,1759843841259,-151.0,0.00019987,7]
[389777816,1759843841268,-151.0,0.00019987,7]
[389777817,1759843841278,-151.0,0.00019987,7]
[389777818,1759843841288,-151.0,0.00019987,7]
[389777819,1759843841297,-151.0,0.00019987,7]
[389777820,1759843841307,-151.0,0.00019987,7]
[389777821,1759843841315,-151.0,0.00019987,7]
[389777822,1759843841325,-151.0,0.00019987,7]
[389777823,1759843841334,-200.0,0.00019999,2]
[389777824,1759843841343,-1819.9820268,0.0002,2]
[389777825,1759843841354,-692015.9226495,0.0002,2]
[389777826,1759843841363,-174.685,0.0002,2]
[389777827,1759843841373,-151.0,0.0002,2]
[389777828,1759843841382,-151.0,0.0002,2]
[389777829,1759843841391,-500.0,0.0002,2]
[389777830,1759843841400,-303.04464238,0.0002,2]
[389777831,1759843841410,-151.0,0.0002,2]
[389777832,1759843841420,-500.0,0.0002,2]
[389777833,1759843841429,-500.0,0.0002,2]
[389777834,1759843841439,-151.0,0.0002,2]
[389777835,1759843841449,-151.0,0.0002,7]
[389777836,1759843841458,-151.0,0.0002,7]
[389777837,1759843841467,-712.235839,0.0002,7]
[389777838,1759843841476,-151.0,0.0002,7]
[389777839,1759843841486,-234.05807603,0.0002,2]
[389777840,1759843841495,-712.235839,0.0002,7]
[389777841,1759843841505,-712.235839,0.0002,7]
[389777842,1759843841514,-14517.33720406,0.0002,2]
[389777843,1759843841524,-712.235839,0.0002,7]
[389777844,1759843841535,-151.0,0.0002,7]
[389777845,1759843841546,-40270.8605035,0.0002,20]
[389777846,1759843841556,-366.95511062,0.0002,2]
[389777847,1759843841565,-151.0,0.0002,7]
[389777848,1759843841574,-158.576464,0.0002,7]
[389777849,1759843841583,-205.23337,0.0002,7]
[389777850,1759843841592,-151.0,0.0002,7]
[389777851,1759843841601,-205.23337,0.0002,7]
[389777852,1759843841612,-151.0,0.0002,7]
[389777853,1759843841621,-205.23337,0.0002,7]
[389777854,1759843841630,-23000.0,0.0002,2]
[389777855,1759843841640,-17574.70039574,0.0002,2]
[389777856,1759843841657,-333.90136465,0.0002,2]
[389777857,1759843841919,2572.0,0.00028767,120]
[389777874,1759843843025,-0.01157,0.0002,2]
[389777881,1759843843089,-66252.7328006,0.0002,2]
[389777883,1759843843100,-200.10679299,0.0002,2]
[389777885,1759843843114,-205.23337,0.0002,7]
[389777887,1759843843123,-19981.82207238,0.0002,2]
[389777889,1759843843902,-257.23725554,0.00018,2]
[389777890,1759843843911,-593.39,0.00019682,3]
[389777891,1759843843920,-2071.37274446,0.0002,2]
[389777904,1759843918458,1000.0,0.00027397,120]
[389777957,1759844041694,2236.8331623,0.000196,14]
[389777958,1759844154242,717.841922,0.00016894,2]
[389777959,1759844227625,1000.0,0.00027397,120]
[389777960,1759844372112,5000.0,0.000196,14]
[389777961,1759844380496,3783.88498188,0.000196,14]
[389777962,1759844396027,725.21475863,0.000196,14]
[389777963,1759844464400,1000.0,0.00016875,2]
[389777964,1759844493836,-4071.06561374,0.00017612,2]
[389777965,1759844500919,444.4535887,0.00017,2]
[389777966,1759844519930,9555.5564113,0.00017,2]
[389777967,1759844526729,-2788.87449311,0.0001699,2]
[389777968,1759844526931,-4422.26101378,0.0001699,2]
[389777969,1759844528188,-8565.15350323,0.00017,2]
[389777970,1759844528322,-10000.01,0.00017,2]
[389777971,1759844528458,-10000.01,0.00017,2]
[389777972,1759844528562,-10000.01,0.00017,2]
[389777973,1759844529066,-10000.01,0.00017,2]
[389777974,1759844530141,-4926.67204236,0.00017,2]
[389777975,1759844530179,-146.66591528,0.00017,2]
[389777976,1759844534977,1000.0,0.00027397,120]
[389777978,1759844842989,1000.0,0.00027397,120]
[389777987,1759845005928,177.26069776,0.00017172,2]
[389778034,1759845032505,-158.38369845,0.00017694,2]
[389778037,1759845032515,-269.89639996,0.00017696,2]
[389778040,1759845032525,-158.38369845,0.000177,2]
[389778043,1759845032534,-152.81485953,0.000177,2]
[389778046,1759845032543,-815.30675222,0.000177,2]
[389778048,1759845032553,-169.04001388,0.00017702,2]
[389778052,1759845032562,-177.26069777,0.00017702,2]
[389778054,1759845032576,-362.00327367,0.00017794,2]
[389778055,1759845032586,-1200.0,0.00017796,2]
[389778057,1759845032595,-799.89012542,0.00017797,2]
[389778059,1759845032606,-1200.0,0.00017797,2]
[389778061,1759845032617,-300.0,0.00017797,2]
[389778063,1759845032627,-300.0,0.00017797,2]
[389778064,1759845032636,-300.0,0.00017797,2]
[389778065,1759845032646,-300.0,0.00017797,2]
[389778067,1759845032657,-300.0,0.00017797,2]
[389778069,1759845032666,-4331.92374172,0.00017798,2]
[389778071,1759845032680,-849.61862922,0.00017798,2]
[389778072,1759845032691,-5426.6768036,0.00017798,2]
[389778074,1759845032718,-2278.3999999,0.00017798,2]
[389778075,1759845032730,-4732.7,0.00017798,2]
[389778076,1759845032741,-545.40302814,0.00017798,2]
[389778077,1759845032753,-8403.57951527,0.00017798,2]
[389778091,1759845038235,-4698.04128397,0.00017798,2]
[389778092,1759845038247,-7060.43604089,0.00017798,2]
[389778093,1759845038256,-5764.77899208,0.000178,2]
[389778094,1759845038265,-500.0,0.00017873,2]
[389778095,1759845038274,-294.2290001,0.00017873,2]
[389778096,1759845038295,-205.7709999,0.00017873,2]
[389778097,1759845038305,-500.0,0.00017873,2]
[389778098,1759845038314,-569.97552678,0.00017873,2]
[389778099,1759845038324,-500.0,0.00017873,2]
[389778100,1759845038337,-500.57425859,0.00017873,2]
[389778101,1759845038346,-500.0,0.00017873,2]
[389778102,1759845038355,-500.4367729,0.00017873,2]
[389778104,1759845038364,-500.0,0.00017873,2]
[389778105,1759845038373,-500.0,0.00017873,2]
[389778106,1759845038382,-498.24912826,0.00017873,2]
[389778107,1759845038391,-500.0,0.00017873,2]
[389778108,1759845038400,-500.0,0.00017873,2]
[389778109,1759845038409,-342.34883664,0.00017873,2]
[389778110,1759845038417,-500.0,0.00017873,2]
[389778111,1759845038426,-182.9632862,0.00017889,2]
[389778112,1759845038435,-500.0,0.00017889,2]
[389778113,1759845038444,-198.0,0.00017889,2]
[389778114,1759845038452,-151.0,0.00017889,2]
[389778115,1759845038461,-282.76206442,0.00017889,2]
[389778116,1759845038471,-151.0,0.00017889,2]
[389778117,1759845038481,-151.0,0.00017889,2]
[389778118,1759845038490,-151.0,0.00017889,2]
[389778119,1759845038499,-151.0,0.00017889,2]
[389778120,1759845038508,-151.0,0.00017889,2]
[389778121,1759845038518,-151.0,0.00017889,2]
[389778122,1759845038527,-151.0,0.00017889,2]
[389778123,1759845038537,-151.0,0.00017889,2]
[389778124,1759845038547,-151.0,0.00017889,2]
[389778125,1759845038556,-141.07297763,0.00017889,2]
[389778126,1759845038585,-68.08932418,0.00017889,2]
[389778127,1759845038595,-151.0,0.00017889,2]
[389778128,1759845038604,-151.0,0.00017889,2]
[389778129,1759845038614,-151.0,0.00017889,2]
[389778130,1759845038625,-151.0,0.00017889,2]
[389778131,1759845038634,-151.0,0.00017889,2]
[389778132,1759845038643,-151.0,0.00017889,2]
[389778133,1759845038653,-151.0,0.00017889,2]
[389778134,1759845038662,-151.0,0.00017889,2]
[389778135,1759845038675,-151.0,0.00017889,2]
[389778136,1759845038684,-151.0,0.00017889,2]
[389778137,1759845038693,-151.0,0.00017889,2]
[389778138,1759845038703,-12.23067582,0.00017889,2]
[389778139,1759845038715,-138.76932418,0.00017889,2]
[389778140,1759845038724,-151.0,0.00017889,2]
[389778141,1759845038734,-151.0,0.00017889,2]
[389778142,1759845038743,-154.32934728,0.00017889,2]
[389778143,1759845038753,-151.0,0.00017889,2]
[389778144,1759845038763,-151.0,0.00017889,2]
[389778145,1759845038773,-151.0,0.00017889,2]
[389778146,1759845038783,-151.0,0.00017889,2]
[389778147,1759845038792,-151.0,0.00017889,2]
[389778148,1759845038802,-151.0,0.00017889,2]
[389778149,1759845038812,-151.0,0.00017889,2]
[389778150,1759845038821,-151.0,0.00017889,2]
[389778151,1759845038832,-151.0,0.00017889,2]
[389778152,1759845038842,-151.0,0.00017889,2]
[389778153,1759845038853,-151.0,0.00017889,2]
[389778154,1759845038863,-151.0,0.00017889,2]
[389778155,1759845038873,-151.0,0.00017889,2]
[389778156,1759845038883,-214.26026121,0.00017889,2]
[389778157,1759845038893,-705.84,0.0001789,3]
[389778158,1759845038902,-352.92,0.0001789,3]
[389778159,1759845038913,-176.46,0.0001789,3]
[389778160,1759845038923,-529.39,0.0001789,3]
[389778162,1759845038932,-500.0,0.00017893,2]
[389778163,1759845038941,-500.0,0.00017893,2]
[389778164,1759845038950,-500.0,0.00017893,2]
[389778166,1759845038959,-500.0,0.00017893,2]
[389778167,1759845038969,-500.0,0.00017893,2]
[389778168,1759845038978,-500.0,0.00017893,2]
[389778169,1759845038988,-500.0,0.00017893,2]
[389778170,1759845038997,-500.0,0.00017893,2]
[389778171,1759845039006,-500.0,0.00017893,2]
[389778172,1759845039016,-500.0,0.00017893,2]
[389778173,1759845039025,-500.0,0.00017893,2]
[389778174,1759845039035,-500.0,0.00017893,2]
[389778175,1759845039044,-500.0,0.00017893,2]
[389778176,1759845039054,-500.0,0.00017893,2]
[389778177,1759845039064,-500.0,0.00017893,2]
[389778178,1759845039074,-500.0,0.00017893,2]
[389778179,1759845039087,-500.0,0.00017893,2]
[389778180,1759845039097,-500.0,0.00017893,2]
[389778181,1759845039107,-500.0,0.00017893,2]
[389778182,1759845039117,-500.0,0.00017893,2]
[389778183,1759845039127,-500.0,0.00017893,2]
[389778184,1759845039137,-500.0,0.00017893,2]
[389778185,1759845039147,-228.65403342,0.00017893,2]
[389778186,1759845039157,-500.0,0.00017893,2]
[389778187,1759845039167,-500.0,0.00017893,2]
[389778188,1759845039176,-500.0,0.00017893,2]
[389778189,1759845039186,-500.0,0.00017893,2]
[389778190,1759845039196,-500.0,0.00017893,2]
[389778191,1759845039206,-500.0,0.00017893,2]
[389778192,1759845039215,-500.0,0.00017893,2]
[389778193,1759845039225,-500.0,0.00017893,2]
[389778194,1759845039234,-500.0,0.00017893,2]
[389778195,1759845039243,-500.0,0.00017893,2]
[389778196,1759845039253,-411.04658639,0.00017893,2]
[389778197,1759845039263,-500.0,0.00017893,2]
[389778198,1759845039272,-557.60638318,0.00017893,2]
[389778199,1759845039282,-500.0,0.00017893,2]
[389778200,1759845039291,-500.0,0.00017893,2]
[389778201,1759845039302,-500.0,0.00017893,2]
[389778202,1759845039312,-500.0,0.00017893,2]
[389778203,1759845039322,-500.0,0.00017893,2]
[389778204,1759845039335,-500.0,0.00017893,2]
[389778205,1759845039345,-180.0,0.00017893,2]
[389778206,1759845039354,-500.0,0.00017893,2]
[389778207,1759845039364,-500.0,0.00017893,2]
[389778208,1759845039374,-500.0,0.00017893,2]
[389778209,1759845039384,-500.0,0.00017893,2]
[389778210,1759845039395,-500.0,0.00017893,2]
[389778211,1759845039405,-500.0,0.00017893,2]
[389778212,1759845039415,-500.0,0.00017893,2]
[389778213,1759845039425,-500.0,0.00017893,2]
[389778214,1759845039434,-500.0,0.00017893,2]
[389778215,1759845039444,-500.0,0.00017893,2]
[389778216,1759845039454,-500.0,0.00017893,2]
[389778217,1759845039464,-500.0,0.00017893,2]
[389778218,1759845039473,-500.0,0.00017893,2]
[389778219,1759845039482,-500.0,0.00017893,2]
[389778220,1759845039491,-500.0,0.00017893,2]
[389778221,1759845039501,-500.0,0.00017893,2]
[389778222,1759845039511,-500.0,0.00017893,2]
[389778223,1759845039520,-500.0,0.00017893,2]
[389778224,1759845039531,-500.0,0.00017893,2]
[389778225,1759845039541,-500.0,0.00017893,2]
[389778226,1759845039550,-500.0,0.00017893,2]
[389778227,1759845039560,-500.0,0.00017893,2]
[389778228,1759845039570,-500.0,0.00017893,2]
[389778229,1759845039585,-500.0,0.00017893,2]
[389778230,1759845039594,-500.0,0.00017893,2]
[389778231,1759845039604,-500.0,0.00017893,2]
[389778232,1759845039614,-500.0,0.00017893,2]
[389778233,1759845039623,-500.0,0.00017893,2]
[389778234,1759845039633,-271.67425406,0.00017893,2]
[389778235,1759845039643,-500.0,0.00017893,2]
[389778236,1759845039652,-500.0,0.00017893,2]
[389778237,1759845039662,-500.0,0.00017893,2]
[389778238,1759845039672,-500.0,0.00017893,2]
[389778239,1759845039682,-500.0,0.00017893,2]
[389778240,1759845039691,-500.0,0.00017893,2]
[389778241,1759845039701,-500.0,0.00017893,2]
[389778242,1759845039711,-500.0,0.00017893,2]
[389778243,1759845039721,-500.0,0.00017893,2]
[389778244,1759845039731,-500.0,0.00017893,2]
[389778246,1759845039741,-422.42157322,0.00017893,2]
[389778247,1759845039750,-500.0,0.00017893,2]
[389778249,1759845039759,-500.0,0.00017893,2]
[389778250,1759845039769,-500.0,0.00017893,2]
[389778251,1759845039779,-500.0,0.00017893,2]
[389778252,1759845039788,-500.0,0.00017893,2]
[389778253,1759845039798,-500.0,0.00017893,2]
[389778254,1759845039807,-500.0,0.00017893,2]
[389778255,1759845039817,-500.0,0.00017893,2]
[389778256,1759845039826,-500.0,0.00017893,2]
[389778257,1759845039838,-500.0,0.00017893,2]
[389778258,1759845039848,-500.0,0.00017893,2]
[389778259,1759845039858,-966.46148311,0.00017898,7]
[389778260,1759845039868,-500.0,0.00017899,2]
[389778261,1759845039878,-423.84333122,0.00017899,2]
[389778262,1759845039888,-500.0,0.00017899,2]
[389778263,1759845039898,-430.35102642,0.00017899,2]
[389778264,1759845039909,-216.6944677,0.00017899,2]
[389778265,1759845039919,-500.0,0.00017899,2]
[389778266,1759845039928,-151.0,0.00017899,2]
[389778267,1759845039937,-151.0,0.00017899,2]
[389778269,1759845039947,-301.999999,0.00017899,2]
[389778270,1759845039959,-151.0,0.00017899,2]
[389778271,1759845039968,-151.0,0.00017899,2]
[389778272,1759845039978,-151.0,0.00017899,2]
[389778273,1759845039988,-151.40055561,0.00017899,2]
[389778275,1759845039997,-151.0,0.00017899,2]
[389778276,1759845040007,-151.0,0.00017899,2]
[389778277,1759845040016,-151.0,0.00017899,2]
[389778278,1759845040026,-151.0,0.00017899,2]
[389778279,1759845040035,-186.61502716,0.00017899,2]
[389778280,1759845040044,-370000.0,0.000179,2]
[389778281,1759845040054,-151.0,0.000179,2]
[389778282,1759845040064,-362.00327366,0.00017926,2]
[389778283,1759845040074,-362.00327366,0.00018058,2]
[389778284,1759845040086,-151.0,0.000181,2]
[389778285,1759845040095,-151.0,0.000181,2]
[389778286,1759845040105,-500.0,0.00018163,2]
[389778287,1759845040115,-151.0,0.00018163,2]
[389778288,1759845040125,-500.0,0.00018173,2]
[389778289,1759845040135,-151.0,0.00018173,2]
[389778290,1759845040144,-151.0,0.00018173,2]
[389778292,1759845040154,-257.23413138,0.00018173,2]
[389778293,1759845040164,-151.0,0.00018173,2]
[389778294,1759845040174,-151.0,0.00018173,2]
[389778295,1759845040183,-151.0,0.00018173,2]
[389778296,1759845040193,-151.0,0.00018173,2]